bitfinex/quotes_ETHUSD_20240921
["timestamp","ask_amount","ask_price","bid_price","bid_amount"]
[1726936346799,2.3937,2562.6,2562.1,4.62385971]
[1726936347085,2.3937,2562.6,2562.0,4.62385971]
[1726936347389,2.3937,2562.6,2562.0,8.37985177]
[1726936347557,2.3937,2562.6,2562.1,3.0]
[1726936347758,2.3937,2562.6,2562.1,4.62385971]
[1726936348090,2.3937,2562.6,2562.2,4.71193941]
[1726936348383,2.3937,2562.6,2562.5,3.0]
[1726936348566,7.43,2563.3,2562.5,4.62385971]
[1726936348567,2.3937,2563.2,2562.5,4.62385971]
[1726936348767,2.3937,2563.1,2562.6,1.62385971]
[1726936348967,2.3937,2563.1,2562.4,4.62385971]
[1726936354461,2.3937,2563.1,2562.5,6.33579912]
[1726936354867,2.3937,2563.1,2562.6,1.62385971]
[1726936355297,2.3937,2563.1,2562.5,6.33579912]
[1726936355466,2.3937,2563.1,2562.5,6.41383772]
[1726936355664,2.3937,2563.1,2562.7,1.71193941]
[1726936355864,2.3937,2563.1,2562.9,1.71193941]
[1726936357205,2.3937,2563.3,2562.9,1.71193941]
[1726936359668,2.3937,2563.5,2563.1,1.71193941]
[1726936361810,9.14193941,2564.0,2563.3,1.71193941]
[1726936361811,2.3937,2563.7,2563.3,1.71193941]
[1726936362381,2.3937,2563.7,2563.5,1.71193941]
[1726936363093,2.3937,2563.7,2563.3,0.05]
[1726936363094,2.3937,2563.7,2563.3,1.76193941]
[1726936363301,2.3937,2563.7,2563.3,1.71193941]
[1726936363590,9.8237,2564.0,2563.5,1.71193941]
[1726936364110,9.8237,2564.0,2563.3,3.70571938]
[1726936364447,9.8237,2564.0,2563.4,3.0]
[1726936365407,9.8237,2564.0,2563.5,6.75571938]
[1726936366107,9.8237,2564.0,2563.5,6.70571938]
[1726936366295,9.8237,2564.0,2563.4,3.0]
[1726936366702,9.8237,2564.0,2563.3,0.05]
[1726936369107,9.8237,2564.0,2563.3,3.75571938]
[1726936369444,9.8237,2564.0,2563.4,3.0]
[1726936370830,2.4028675,2563.6,2563.1,3.75571938]
[1726936370983,2.4028675,2563.6,2563.2,3.0]
[1726936371383,2.4028675,2563.6,2563.1,0.05]
[1726936371596,2.4028675,2563.6,2563.0,3.0]
[1726936372914,2.4028675,2563.6,2563.2,3.0]
[1726936373427,2.4028675,2563.6,2563.3,0.07801584]
[1726936373826,2.4028675,2563.6,2563.2,3.0]
[1726936374317,2.4028675,2563.6,2563.3,0.07801576]
[1726936374717,2.4028675,2563.6,2563.2,3.0]
[1726936374919,2.4028675,2563.6,2563.3,0.07801573]
[1726936375120,2.4028675,2563.6,2563.2,3.0]
[1726936376280,2.4028675,2563.6,2563.3,0.0780158]
[1726936376631,2.4028675,2563.6,2563.2,3.0]
[1726936377593,2.4028675,2563.6,2563.0,3.0]
[1726936379365,2.64315425,2563.6,2562.8,1.62385971]
[1726936379578,2.64315425,2563.6,2562.7,3.70571938]
[1726936380765,2.64315425,2563.6,2562.8,3.0]
[1726936381183,2.64315425,2563.6,2562.9,3.70571938]
[1726936381479,2.4028675,2563.6,2563.0,3.0]
[1726936385550,2.4028675,2563.6,2562.8,3.0]
[1726936385950,2.4028675,2563.6,2562.9,1.71104038]
[1726936386146,2.63128675,2563.5,2562.9,1.71104038]
[1726936386352,2.391,2563.5,2562.9,1.71104038]
[1726936386546,2.391,2563.5,2562.6,3.0]
[1726936386796,2.391,2563.5,2562.5,1.71104038]
[1726936388203,2.391,2563.5,2562.7,1.71104038]
[1726936391898,2.391,2563.5,2563.1,1.71104038]
[1726936393998,2.391,2563.5,2563.0,3.0]
[1726936394610,0.0376675,2563.6,2563.2,3.0]
[1726936395801,2.2762,2563.5,2563.2,3.0]
[1726936397578,2.2762,2563.5,2563.0,4.62385971]
[1726936398692,2.2762,2563.5,2563.0,4.94734241]
[1726936399562,2.2762,2563.5,2563.1,1.62385971]
[1726936399807,2.2762,2563.5,2563.1,4.62385971]
[1726936400467,2.2762,2563.5,2563.1,4.94761043]
[1726936401165,2.2762,2563.5,2563.1,8.65444139]
[1726936401997,2.2762,2563.5,2563.2,0.32375072]
[1726936402428,2.2762,2563.5,2563.2,4.94761043]
[1726936403130,2.2762,2563.5,2563.3,0.32375072]
[1726936403449,0.0376675,2563.6,2563.4,0.32375072]
[1726936403742,0.0376675,2563.6,2563.5,3.0]
[1726936403927,0.0376675,2563.6,2563.4,4.94761043]
[1726936405347,0.0376675,2563.6,2563.4,0.32375072]
[1726936405548,2.3907,2563.5,2563.3,1.94761043]
[1726936405759,2.3907,2563.5,2563.2,4.62385971]
[1726936405920,2.3907,2563.5,2563.2,1.62385971]
[1726936406125,2.3907,2563.5,2563.1,1.62385971]
[1726936406126,2.63353675,2563.5,2563.1,1.62385971]
[1726936406643,2.63353675,2563.5,2563.0,1.62385971]
[1726936406819,2.63353675,2563.5,2562.8,2.03874761]
[1726936406820,2.63353675,2563.5,2562.9,1.62385971]
[1726936407147,2.63353675,2563.5,2563.0,1.62385971]
[1726936408017,2.63353675,2563.5,2563.0,4.62385971]
[1726936408218,2.3907,2563.5,2563.0,4.62385971]
[1726936408833,2.3907,2563.5,2563.1,3.70683096]
[1726936409052,2.3907,2563.5,2563.1,5.33069067]
[1726936409557,2.3907,2563.5,2563.1,3.70683096]
[1726936409758,2.3907,2563.5,2563.1,4.62385971]
[1726936409917,2.3907,2563.5,2563.1,1.62385971]
[1726936410116,2.63353675,2563.5,2563.0,3.0]
[1726936410319,2.63353675,2563.5,2562.9,4.62385971]
[1726936411160,2.63353675,2563.5,2562.8,4.62385971]
[1726936412422,2.63353675,2563.5,2562.9,1.62385971]
[1726936412626,2.63353675,2563.5,2562.9,5.33069067]
[1726936412964,2.63353675,2563.5,2563.0,3.0]
[1726936413458,2.63353675,2563.5,2563.0,4.62385971]
[1726936413662,2.3907,2563.5,2563.1,1.62385971]
[1726936413847,2.3907,2563.5,2563.0,4.62385971]
[1726936414053,2.3907,2563.5,2563.1,1.71089111]
[1726936417693,2.3907,2563.5,2563.3,1.71089111]
[1726936422959,2.3907,2563.5,2563.2,4.62385971]
[1726936423157,2.3907,2563.5,2563.1,4.62385971]
[1726936424104,2.3907,2563.5,2563.2,1.71089111]
[1726936424255,2.3907,2563.5,2563.2,3.33475082]
[1726936424717,2.3907,2563.5,2563.2,1.71089111]
[1726936425350,2.3907,2563.5,2563.2,3.33475082]
[1726936428295,2.3907,2563.5,2563.4,1.71089111]
[1726936429404,2.3907,2563.5,2563.4,3.33475082]
[1726936429591,2.3907,2563.5,2563.4,1.71089111]
[1726936429772,2.3907,2563.5,2563.4,3.33475082]
[1726936430104,2.3510675,2563.6,2563.4,4.71089111]
[1726936430609,2.3510675,2563.6,2563.4,6.33475082]
[1726936432314,2.3510675,2563.6,2563.4,4.71089111]
[1726936432469,2.3510675,2563.6,2563.4,6.33475082]
[1726936433310,2.3510675,2563.6,2563.4,4.71089111]
[1726936434870,2.3510675,2563.6,2563.4,6.41276438]
[1726936435072,2.3510675,2563.6,2563.5,4.62385971]
[1726936435367,0.0376675,2563.6,2563.5,5.08840981]
[1726936435576,0.0376675,2563.6,2563.5,4.68050483]
[1726936436004,0.0376675,2563.6,2563.5,3.05]
[1726936436589,0.0376675,2563.6,2563.5,4.68053881]
[1726936436788,0.0376675,2563.6,2563.5,4.68047612]
[1726936437033,0.0376675,2563.6,2563.5,4.75848232]
[1726936437394,0.0376675,2563.6,2563.5,3.1280062]
[1726936437931,0.0376675,2563.6,2563.5,4.75847631]
[1726936438930,0.0376675,2563.6,2563.5,4.75840187]
[1726936439139,0.0376675,2563.6,2563.5,3.1280062]
[1726936439627,0.0376675,2563.6,2563.5,4.75829315]
[1726936440628,0.0376675,2563.6,2563.5,4.63028695]
[1726936440840,0.0376675,2563.6,2563.5,3.0]
[1726936441130,0.0376675,2563.6,2563.5,4.63035389]
[1726936443500,0.0376675,2563.6,2563.5,3.0]
[1726936443703,0.0376675,2563.6,2563.5,4.63035389]
[1726936443904,0.0376675,2563.6,2563.5,3.0]
[1726936444125,0.0376675,2563.6,2563.5,4.63035389]
[1726936445456,0.0376675,2563.6,2563.5,3.0]
[1726936446657,0.0376675,2563.6,2563.3,4.63035389]
[1726936446805,0.0376675,2563.6,2563.4,1.71089111]
[1726936447006,0.0376675,2563.6,2563.4,6.41925697]
[1726936447636,0.0376675,2563.6,2563.4,4.71089111]
[1726936448219,0.0376675,2563.6,2563.4,6.341245]
[1726936448823,0.0376675,2563.6,2563.5,0.0780101]
[1726936449929,0.0376675,2563.6,2563.4,6.341245]
[1726936450951,0.0376675,2563.6,2563.5,3.0]
[1726936451271,0.0376675,2563.6,2563.5,4.63035389]
[1726936451570,0.0376675,2563.6,2563.5,3.0]
[1726936453823,0.0376675,2563.6,2563.5,4.63035389]
[1726936454023,0.0376675,2563.6,2563.5,3.0]
[1726936458601,0.0376675,2563.6,2563.5,4.63035389]
[1726936459156,2.4064675,2563.6,2563.4,4.63035389]
[1726936459498,0.24064675,2563.5,2563.3,4.63035389]
[1726936459682,0.24064675,2563.5,2563.2,4.63035389]
[1726936459994,2.4064675,2563.6,2563.2,4.63035389]
[1726936460862,2.4064675,2563.6,2563.1,4.63035389]
[1726936462494,2.4064675,2563.6,2563.2,1.63035389]
[1726936462799,2.4064675,2563.6,2563.2,3.341245]
[1726936462999,2.4064675,2563.6,2563.2,1.71089111]
[1726936464285,2.64711425,2563.6,2563.2,1.71089111]
[1726936464467,2.64711425,2563.6,2563.2,3.341245]
[1726936464669,2.64711425,2563.6,2563.2,1.63035389]
[1726936464904,2.64711425,2563.6,2563.1,4.63035389]
[1726936468018,2.64711425,2563.6,2563.1,3.0]
[1726936468169,2.3431,2563.4,2563.1,3.0]
[1726936469202,2.3431,2563.4,2563.0,4.63035389]
[1726936469499,2.3431,2563.4,2562.9,4.63035389]
[1726936469882,2.3431,2563.4,2562.9,3.0]
[1726936470087,2.3431,2563.4,2562.9,4.63035389]
[1726936470285,2.3431,2563.2,2562.9,3.0]
[1726936472868,2.3431,2563.2,2562.9,4.63035389]
[1726936474822,2.3431,2563.2,2562.9,3.0]
[1726936477595,2.3431,2563.2,2562.8,4.71089111]
[1726936479034,2.3431,2563.2,2562.8,6.341245]
[1726936479418,2.3431,2563.2,2562.8,4.71089111]
[1726936491586,2.3431,2563.2,2562.8,6.341245]
[1726936492089,2.3431,2563.2,2562.8,4.71089111]
[1726936492262,2.3431,2563.2,2562.8,6.341245]
[1726936492747,2.3431,2563.2,2563.0,1.71089111]
[1726936499782,2.3363,2563.4,2563.0,3.341245]
[1726936500787,2.3363,2563.4,2563.0,1.63035389]
[1726936501084,2.3363,2563.4,2562.9,4.63035389]
[1726936502094,2.3363,2563.4,2563.0,1.63035389]
[1726936504772,2.3363,2563.4,2563.1,1.63035389]
[1726936504974,2.64837343,2563.4,2563.1,1.63035389]
[1726936505393,2.64837343,2563.4,2563.0,1.63035389]
[1726936505594,2.64837343,2563.4,2563.1,1.63035389]
[1726936508105,2.3363,2563.4,2563.1,1.63035389]
[1726936508419,2.3363,2563.4,2563.2,1.63035389]
[1726936509615,0.0376675,2563.6,2563.3,4.7083793]
[1726936509783,0.0376675,2563.6,2563.4,3.341245]
[1726936510133,0.0376675,2563.6,2563.5,1.63035389]
[1726936511298,0.0376675,2563.6,2563.4,3.341245]
[1726936512488,0.0376675,2563.6,2563.5,1.63035389]
[1726936512691,0.0376675,2563.6,2563.4,3.341245]
[1726936515718,0.0376675,2563.6,2563.4,1.71089111]
[1726936516316,0.0376675,2563.6,2563.3,4.63035389]
[1726936516317,2.4249,2563.5,2563.3,4.63035389]
[1726936516490,2.4249,2563.5,2563.1,1.63035389]
[1726936517093,2.4249,2563.5,2563.0,3.341245]
[1726936517990,2.4249,2563.5,2563.1,3.0]
[1726936518403,2.4249,2563.5,2563.1,4.63035389]
[1726936519282,2.4249,2563.5,2563.1,3.0]
[1726936520211,2.4249,2563.5,2563.1,4.63035389]
[1726936521219,2.4249,2563.5,2563.1,3.0]
[1726936521412,2.4249,2563.5,2563.1,4.63035389]
[1726936521719,2.69578243,2563.5,2563.1,4.63035389]
[1726936521925,2.69578243,2563.5,2563.1,3.0]
[1726936522094,2.69578243,2563.5,2563.1,4.63035389]
[1726936522289,2.69578243,2563.5,2563.1,3.0]
[1726936522495,2.69578243,2563.5,2563.1,4.63035389]
[1726936523027,2.69578243,2563.5,2563.1,3.0]
[1726936523185,2.4249,2563.5,2563.1,4.63035389]
[1726936523826,2.4249,2563.5,2563.1,3.0]
[1726936525616,2.4249,2563.5,2563.1,4.63035389]
[1726936525917,2.4249,2563.5,2563.1,3.0]
[1726936527051,2.4249,2563.5,2563.1,4.63035389]
[1726936531906,2.4249,2563.5,2563.2,0.0991186]
[1726936532104,2.3935,2563.3,2563.2,0.0991186]
[1726936537651,2.3935,2563.3,2563.2,1.72947249]
[1726936537852,2.3935,2563.3,2563.2,0.0991186]
[1726936538448,2.3935,2563.3,2563.0,1.63035389]
[1726936538649,2.3935,2563.3,2563.2,0.09542934]
[1726936538855,2.3935,2563.3,2562.8,1.63035389]
[1726936538856,2.63285,2563.3,2562.8,1.63035389]
[1726936539059,2.63285,2563.3,2562.7,1.63035389]
[1726936539259,2.63285,2563.3,2562.8,0.09553422]
[1726936539458,2.3935,2563.1,2562.4,1.63035389]
[1726936539814,0.23935,2563.3,2562.5,0.09565271]
[1726936539815,2.3935,2562.9,2562.5,0.09565271]
[1726936540043,2.3935,2562.9,2562.3,1.63035389]
[1726936540044,2.3935,2562.7,2562.3,1.63035389]
[1726936540460,2.3935,2562.7,2562.4,0.09581177]
[1726936540762,2.3935,2562.7,2562.2,1.63035389]
[1726936540921,2.3935,2562.7,2562.5,0.09578554]
[1726936541121,2.3935,2562.7,2562.2,4.63035389]
[1726936541359,2.3935,2562.7,2562.6,0.09575932]
[1726936541360,2.67389391,2562.7,2562.6,0.09575932]
[1726936541527,2.67389391,2562.7,2562.2,4.63035389]
[1726936541734,2.67389391,2562.7,2562.6,0.09575932]
[1726936541921,2.67389391,2562.7,2562.2,1.63035389]
[1726936542131,2.3935,2562.7,2562.6,0.09575932]
[1726936542356,2.3935,2562.7,2562.3,1.71089111]
[1726936542663,2.3935,2562.7,2562.3,4.71089111]
[1726936542831,2.3935,2562.7,2562.3,1.71089111]
[1726936543038,2.3935,2562.7,2562.4,0.09581177]
[1726936559871,7.43,2563.2,2562.5,1.71089111]
[1726936560086,2.4607,2563.0,2562.7,1.71089111]
[1726936560248,2.4607,2563.0,2562.9,1.71089111]
[1726936560448,2.4607,2563.5,2562.9,1.71089111]
[1726936560774,2.4607,2563.5,2562.9,1.8069471]
[1726936561079,2.4607,2563.3,2562.9,0.09605599]
[1726936561441,2.4607,2563.3,2562.7,1.76089111]
[1726936561681,2.4607,2563.3,2563.0,0.09602977]
[1726936561842,2.4607,2563.3,2562.7,1.76089111]
[1726936562044,2.4607,2563.3,2563.1,0.09600355]
[1726936562352,0.34535368,2563.2,2562.7,1.76089111]
[1726936562566,2.4607,2563.3,2562.7,1.76089111]
[1726936564790,2.4607,2563.3,2562.7,1.71089111]
[1726936569794,2.4607,2563.3,2562.8,0.09591281]
[1726936570008,2.4607,2563.3,2562.7,1.71089111]
[1726936570159,2.4607,2563.3,2562.9,0.09588659]
[1726936570357,0.34535368,2563.2,2562.7,1.71089111]
[1726936570566,2.4607,2563.3,2563.0,0.09573414]
[1726936570873,2.4607,2563.3,2562.7,1.71089111]
[1726936571407,2.4607,2563.3,2562.8,0.09578658]
[1726936571607,2.4607,2563.3,2562.7,1.71089111]
[1726936571809,2.4607,2563.3,2562.9,0.09576036]
[1726936572006,2.4607,2563.3,2562.7,1.71089111]
[1726936572007,2.80605368,2563.3,2562.7,1.71089111]
[1726936572167,2.80605368,2563.3,2563.0,0.09573414]
[1726936572371,2.80605368,2563.3,2562.9,1.71089111]
[1726936572584,2.80605368,2563.3,2563.1,0.09570128]
[1726936572811,2.80605368,2563.3,2562.9,1.71089111]
[1726936573013,7.4676675,2563.6,2563.2,0.09567507]
[1726936573309,2.3497,2563.5,2563.1,1.71089111]
[1726936573522,2.3497,2563.5,2563.3,0.09564885]
[1726936573719,0.0376675,2563.6,2563.3,1.71089111]
[1726936574075,0.0376675,2563.6,2563.4,0.09562264]
[1726936574371,0.0376675,2563.6,2563.4,0.09445103]
[1726936575232,0.0376675,2563.6,2563.5,1.71089111]
[1726936575578,0.0376675,2563.6,2563.5,1.80644849]
[1726936586827,0.0376675,2563.6,2563.5,0.09555738]
[1726936587047,0.0376675,2563.6,2563.2,0.05]
[1726936587048,0.0376675,2563.6,2563.4,1.71089111]
[1726936587342,0.0376675,2563.6,2563.5,0.09537475]
[1726936589242,0.0376675,2563.6,2563.4,3.0]
[1726936589407,0.0376675,2563.6,2563.5,0.09527518]
[1726936589735,0.0376675,2563.6,2563.3,1.71089111]
[1726936589920,0.0376675,2563.6,2563.5,0.09527518]
[1726936590132,0.0376675,2563.6,2563.4,0.09530139]
[1726936590433,2.4981675,2563.6,2563.5,0.09527518]
[1726936590597,2.4981675,2563.6,2563.3,1.71089111]
[1726936590802,2.4981675,2563.6,2563.5,0.09527518]
[1726936591002,2.74798425,2563.6,2563.3,1.71089111]
[1726936591214,2.74798425,2563.6,2563.5,0.09527518]
[1726936591420,2.74798425,2563.6,2563.2,1.76089111]
[1726936591637,2.4981675,2563.6,2563.5,0.09527518]
[1726936591834,2.4981675,2563.6,2563.2,1.76089111]
[1726936592235,2.4981675,2563.6,2563.3,0.0953276]
[1726936592445,0.0376675,2563.6,2563.4,1.71089111]
[1726936592743,0.0376675,2563.6,2563.4,1.8061925]
[1726936592916,0.0376675,2563.6,2563.4,0.09530139]
[1726936593845,0.0376675,2563.6,2563.3,1.71089111]
[1726936594054,2.4981675,2563.6,2563.5,0.09213588]
[1726936594209,2.74798425,2563.6,2563.4,0.09216209]
[1726936594550,2.74798425,2563.6,2562.9,1.71089111]
[1726936595009,2.74798425,2563.6,2563.0,0.09226695]
[1726936595205,1.71089111,2563.5,2563.0,0.09226695]
[1726936595459,2.74798425,2563.6,2562.6,1.76089111]
[1726936595460,2.4605,2563.4,2562.6,1.76089111]
[1726936595742,0.24605,2563.3,2563.1,0.08916517]
[1726936595919,0.24605,2563.3,2562.8,1.71089111]
[1726936596248,0.24605,2563.3,2563.2,0.08913895]
[1726936596452,0.24605,2563.3,2562.8,1.71089111]
[1726936596751,0.24605,2563.3,2563.2,0.08913895]
[1726936596920,0.24605,2563.3,2562.8,1.71089111]
[1726936597107,0.24605,2563.3,2563.2,0.08913895]
[1726936597308,0.24605,2563.3,2562.8,1.71089111]
[1726936597647,0.24605,2563.3,2563.2,0.08913895]
[1726936597945,0.24605,2563.3,2563.2,1.71089111]
[1726936598108,2.4605,2563.4,2563.2,1.80003006]
[1726936603047,2.4605,2563.4,2563.2,0.08913895]
[1726936603245,2.4605,2563.4,2562.8,4.71089111]
[1726936603443,2.4605,2563.4,2563.3,0.08911274]
[1726936603624,2.4605,2563.4,2562.8,1.71089111]
[1726936603952,2.3634,2563.2,2562.8,1.71089111]
[1726936604312,2.3634,2563.2,2563.0,1.71089111]
[1726936606890,2.3634,2563.2,2562.8,1.71089111]
[1726936607689,2.3634,2563.2,2562.7,3.0]
[1726936608262,2.3634,2563.2,2562.6,3.341245]
[1726936608479,2.59974,2563.1,2562.6,1.71089111]
[1726936608974,2.59974,2563.1,2562.4,1.71089111]
[1726936611150,2.59974,2563.1,2562.2,1.71089111]
[1726936612249,2.59974,2563.1,2562.0,1.63035389]
[1726936612555,2.3634,2562.9,2562.0,1.71089111]
[1726936613570,2.3634,2562.9,2562.1,0.08968974]
[1726936613996,2.3634,2562.9,2562.2,1.71089111]
[1726936614290,2.3634,2562.9,2562.3,0.08963727]
[1726936614860,2.3634,2562.9,2562.2,1.71089111]
[1726936615059,2.3634,2562.7,2562.3,0.08963727]
[1726936615298,2.3634,2562.7,2562.0,1.71089111]
[1726936615723,2.3634,2562.7,2562.1,0.08968974]
[1726936616706,2.3634,2562.7,2561.8,1.71089111]
[1726936616915,2.3634,2562.7,2562.2,0.09005547]
[1726936617091,2.3634,2562.5,2561.8,1.71089111]
[1726936617313,2.3634,2562.5,2562.3,0.09002924]
[1726936617481,2.3634,2562.5,2561.8,1.71089111]
[1726936617793,2.3634,2562.5,2561.9,0.09013418]
[1726936620491,2.3634,2562.5,2562.0,1.71089111]
[1726936620695,2.59974,2562.5,2562.0,1.71089111]
[1726936620952,2.59974,2562.5,2562.1,0.0900817]
[1726936623339,2.59974,2562.5,2562.2,1.71089111]
[1726936627199,2.59974,2562.5,2562.3,0.09017542]
[1726936627540,2.59974,2562.5,2562.0,1.71089111]
[1726936627935,2.59974,2562.5,2562.1,0.09019465]
[1726936629883,2.59974,2562.5,2562.2,1.71089111]
[1726936630049,2.3634,2562.5,2562.2,1.71089111]
[1726936630240,2.3634,2562.5,2562.3,0.09014218]
[1726936630437,2.3634,2562.5,2562.2,1.71089111]
[1726936630684,2.3634,2562.5,2562.3,0.09014218]
[1726936631053,2.3634,2562.5,2562.2,1.71089111]
[1726936631276,2.3634,2562.5,2562.3,0.09014218]
[1726936631573,2.3634,2562.5,2562.2,1.71089111]
[1726936631948,2.3634,2562.5,2562.3,0.09014218]
[1726936632339,2.3634,2562.5,2562.2,1.71089111]
[1726936632795,2.3634,2562.5,2562.3,0.09014218]
[1726936632969,2.3634,2562.5,2562.2,1.71089111]
[1726936632970,2.59974,2562.5,2562.2,1.71089111]
[1726936633165,2.59974,2562.5,2562.3,0.09014218]
[1726936633491,2.59974,2562.5,2562.2,1.71089111]
[1726936633787,2.59974,2562.5,2562.3,0.09014218]
[1726936633951,0.259974,2562.4,2562.2,1.71089111]
[1726936634154,2.3886,2562.3,2561.8,1.71089111]
[1726936636681,2.3886,2562.3,2561.6,1.71089111]
[1726936637257,2.3886,2562.1,2561.1,1.63035389]
[1726936637460,2.3886,2562.1,2561.2,1.71089111]
[1726936638357,2.3886,2562.1,2561.4,1.71089111]
[1726936638557,2.62746,2562.0,2561.4,1.71089111]
[1726936643790,2.62746,2562.0,2561.2,1.71089111]
[1726936644114,2.3546,2561.9,2561.0,1.71089111]
[1726936644684,2.3546,2561.9,2561.1,0.08441879]
[1726936644884,2.3546,2561.7,2561.1,0.08441879]
[1726936649985,2.3546,2561.7,2560.9,1.71089111]
[1726936650193,2.3546,2561.7,2561.0,0.08497175]
[1726936656054,2.3546,2561.5,2560.6,1.74855861]
[1726936656228,2.3546,2561.5,2560.7,0.0851135]
[1726936656408,2.3546,2561.3,2560.7,0.0851135]
[1726936658298,2.3546,2561.3,2560.8,1.71089111]
[1726936658797,2.3546,2561.3,2560.9,0.08506098]
[1726936659792,2.3546,2561.3,2560.6,0.0376675]
[1726936659959,2.3546,2561.3,2561.0,0.08219935]
[1726936660162,2.3546,2561.1,2560.6,0.0376675]
[1726936663935,2.3546,2561.1,2560.6,5e-08]
[1726936666301,2.2697,2561.0,2560.6,5e-08]
[1726936670594,2.2697,2561.0,2560.7,0.08274223]
[1726936670795,2.2697,2561.0,2560.6,5e-08]
[1726936671217,2.2697,2561.0,2560.7,0.08272896]
[1726936671388,2.49667,2561.0,2560.6,5e-08]
[1726936672111,2.49667,2561.0,2560.7,0.08272896]
[1726936672514,2.49667,2561.0,2560.6,5e-08]
[1726936672905,2.49667,2561.0,2560.7,0.08272896]
[1726936673230,2.49667,2561.0,2560.6,5e-08]
[1726936673397,2.2697,2560.8,2560.7,0.0799647]
[1726936673719,2.2697,2560.8,2560.6,5e-08]
[1726936674100,2.2697,2560.8,2560.7,0.0799647]
[1726936674427,2.2697,2560.8,2560.6,5e-08]
[1726936674622,2.2697,2560.8,2560.7,0.07729921]
[1726936674838,2.69272581,2560.8,2560.6,5e-08]
[1726936677444,2.69272581,2560.8,2560.7,0.07457234]
[1726936677445,3.24272581,2560.8,2560.7,0.07457234]
[1726936677665,0.97302581,2560.8,2560.5,3.58660375]
[1726936677977,0.97302581,2560.8,2560.6,0.07459861]
[1726936677978,2.2697,2560.7,2560.6,0.07459861]
[1726936678122,2.2697,2560.6,2560.3,3.9057]
[1726936678445,2.2697,2560.6,2560.5,3.90539]
[1726936679022,2.2697,2560.6,2560.5,3.88778032]
[1726936679223,2.2697,2560.6,2560.5,3.87884032]
[1726936680386,2.2697,2560.6,2560.5,3.54001612]
[1726936680562,2.2697,2560.6,2560.5,3.28850129]
[1726936680860,2.2697,2560.6,2560.5,3.23846719]
[1726936682393,2.3565,2561.2,2560.5,1.71089111]
[1726936682527,3.67580491,2561.2,2560.5,1.76089111]
[1726936685939,3.67580491,2561.2,2560.6,0.07218494]
[1726936687487,2.3565,2561.1,2560.6,0.07218494]
[1726936692799,2.3565,2561.3,2560.9,1.71089111]
[1726936693012,2.3565,2561.8,2561.1,1.71089111]
[1726936693172,0.23565,2561.7,2561.1,1.76089111]
[1726936693356,0.23565,2561.7,2561.2,0.0719113]
[1726936695466,0.23565,2561.7,2561.3,1.71089111]
[1726936695665,2.3565,2562.0,2561.5,1.71089111]
[1726936695893,2.7265,2562.2,2561.6,0.07165711]
[1726936696062,0.27265,2562.1,2561.6,0.07165711]
[1726936696679,2.3565,2562.0,2561.4,0.05]
[1726936697009,2.3565,2562.0,2561.5,0.07165685]
[1726936697591,4.06739111,2562.0,2561.5,0.07165685]
[1726936697904,2.3565,2561.9,2561.2,0.05]
[1726936698104,2.79050411,2561.9,2561.3,0.07140108]
[1726936699506,1.71089111,2561.8,2561.3,0.07140108]
[1726936699820,1.71089111,2561.8,2560.9,0.05]
[1726936699821,2.3565,2561.7,2560.9,0.05]
[1726936699994,0.23565,2561.6,2561.0,1.71089111]
[1726936700311,0.23565,2561.6,2561.0,1.78001081]
[1726936704023,0.23565,2561.6,2561.0,0.0691197]
[1726936707213,2.3565,2561.7,2561.2,0.05]
[1726936707582,2.3565,2561.7,2561.3,0.06912379]
[1726936711393,2.86710411,2561.9,2561.3,0.06912379]
[1726936712002,2.86710411,2561.9,2561.2,0.05]
[1726936714194,2.86710411,2561.9,2561.3,0.06920002]
[1726936714419,0.28671041,2561.8,2561.2,0.05]
[1726936714633,0.28671041,2561.8,2561.3,0.06920002]
[1726936714834,0.28671041,2561.8,2561.2,0.05]
[1726936724862,0.28671041,2561.8,2561.3,1.76089111]
[1726936725071,2.63425,2562.1,2561.3,1.76089111]
[1726936727845,2.63425,2562.1,2561.3,0.05]
[1726936730635,2.63425,2562.1,2561.3,1.76089111]
[1726936730830,0.27265,2562.1,2561.7,1.71089111]
[1726936731066,2.3616,2562.4,2561.8,0.05]
[1726936733343,0.37,2562.5,2561.8,0.05]
[1726936733950,2.08089111,2562.5,2561.8,0.05]
[1726936734977,2.08089111,2562.5,2561.9,0.06884701]
[1726936735163,1.71089111,2562.5,2561.9,0.06884701]
[1726936735356,0.79748011,2562.4,2561.9,0.06884701]
[1726936738041,2.3616,2562.3,2561.9,0.06884701]
[1726936741781,4.07249111,2562.3,2561.9,0.06884701]
[1726936742082,2.9814,2562.0,2561.9,2e-08]
[1726936742293,7.74412911,2562.0,2561.9,0.06425781]
[1726936742451,7.74412911,2562.0,2561.4,0.05]
[1726936742650,1.71089111,2561.9,2561.4,0.05]
[1726936742859,3.84092911,2562.0,2561.5,0.06438903]
[1726936745563,2.9814,2562.0,2561.5,0.06438903]
[1726936747271,2.9814,2562.0,2561.4,0.05]
[1726936749691,4.45336,2561.9,2561.4,0.05]
[1726936749993,4.45336,2561.9,2561.5,0.06455099]
[1726936750353,0.55,2561.9,2561.6,0.06452474]
[1726936750575,0.688462,2561.8,2561.4,0.05]
[1726936750779,3.90295,2562.2,2561.5,0.06239929]
[1726936750954,0.55,2562.1,2561.5,0.06239929]
[1726936753138,4.45305,2562.1,2561.5,0.04105644]
[1726936753298,0.988445,2562.0,2561.5,0.06239618]
[1726936757020,0.988445,2562.0,2561.5,2e-08]
[1726936757253,0.988445,2562.0,2561.5,0.05960488]
[1726936758828,0.988445,2562.0,2561.4,0.05]
[1726936759057,0.988445,2562.0,2561.6,0.05756748]
[1726936759228,0.71523861,2561.9,2561.5,0.05759373]
[1726936759431,0.71523861,2561.9,2561.4,0.05]
[1726936759622,0.71523861,2561.9,2561.6,0.05564944]
[1726936759821,0.71523861,2561.9,2561.5,0.05567569]
[1726936760062,0.71523861,2561.9,2561.7,0.0556232]
[1726936760232,0.71523861,2561.9,2561.6,0.05564944]
[1726936760433,0.71523861,2561.9,2561.4,0.05]
[1726936760634,0.71523861,2561.9,2561.7,0.05564303]
[1726936760829,0.71523861,2561.9,2561.4,0.05]
[1726936761022,2.4314,2561.8,2561.4,0.05]
[1726936761222,0.31466386,2561.7,2561.5,0.05368331]
[1726936761931,0.31466386,2561.7,2561.5,2e-08]
[1726936762137,0.31466386,2561.7,2561.2,0.05]
[1726936762343,0.31466386,2561.7,2561.3,0.05194637]